[Event "13th Poti Nana Aleksandria Cup"]
[Site "Poti"]
[Date "2018.07.15"]
[Round "4"]
[White "Vakhania, Aleksandra"]
[Black "Samadov, Read"]
[Result "1/2-1/2"]
[ECO "D02"]
[WhiteElo "2182"]
[BlackElo "2037"]
[Annotator "NA"]
[PlyCount "178"]
[EventDate "2018.07.13"]
[EventType "swiss"]
[EventCountry "GEO"]
[SourceTitle "playchess.com"]
[Source "ChessBase"]
[SourceQuality "1"]
[TimeControl "40/5400+30:1800+30"]

1. d4 {[%emt 0:00:00]} d5 {[%emt 0:00:00]} 2. Nf3 {[%emt 0:00:00]} Nf6 {[%emt 0:00:00]} 3. g3 {[%emt 0:00:04]} Bf5 {[%emt 0:00:05]} 4. Bg2 {[%emt 0:00:09]} h6 {[%emt 0:00:43]} 5. c4 {[%emt 0:01:20]} c6 {[%emt 0:01:02]} 6. cxd5 {[%emt 0:02:27]} cxd5 {[%emt 0:00:42]} 7. Nc3 {[%emt 0:01:02]} Nc6 {[%emt 0:10:40]} 8. Qb3 {[%emt 0:03:49]} Na5 {[%emt 0:02:38]} 9. Qa4+ {[%emt 0:01:38]} Bd7 {[%emt 0:00:35]} 10. Qd1 {[%emt 0:00:19]} e6 {[%emt 0:01:59]} 11. O-O {[%emt 0:00:19]} Bd6 {[%emt 0:02:51]} 12. Ne5 {[%emt 0:00:50]} O-O {[%emt 0:09:05]} 13. Bf4 {[%emt 0:00:10]} Qe7 {[%emt 0:04:55]} 14. e4 {[%emt 0:09:53]} dxe4 {[%emt 0:05:13]} 15. Nxe4 {[%emt 0:00:07]} Nxe4 {[%emt 0:02:50]} 16. Bxe4 {[%emt 0:00:06]} Bxe5 {[%emt 0:02:42]} 17. dxe5 {[%emt 0:04:50]} Bc6 {[%emt 0:10:37]} 18. Bd3 {[%emt 0:05:47]} Rfd8 {[%emt 0:03:05]} 19. Qe2 {[%emt 0:00:17]} Rd4 {[%emt 0:08:02]} 20. Be3 {[%emt 0:06:10]} Rd5 {[%emt 0:02:55]} 21. f4 {[%emt 0:03:04]} Rad8 {[%emt 0:03:28]} 22. Rfd1 {[%emt 0:02:28]} Qd7 {[%emt 0:02:54]} 23. Bc2 {[%emt 0:01:00]} Bb5 {[%emt 0:03:42]} 24. Qe1 {[%emt 0:06:05]} Nc6 {[%emt 0:05:56]} 25. Bb3 {[%emt 0:27:15]} Rd3 {[%emt 0:02:25]} 26. Rxd3 {[%emt 0:00:30]} Qxd3 {[%emt 0:01:07]} 27. Rd1 {[%emt 0:00:25]} Qe4 {[%emt 0:00:34]} 28. Rxd8+ {[%emt 0:04:12]} Nxd8 {[%emt 0:00:02]} 29. Bf2 {[%emt 0:00:10]} Qd3 {[%emt 0:03:32]} 30. Qd1 {[%emt 0:15:22]} Nc6 {[%emt 0:02:55]} 31. Qxd3 {[%emt 0:00:59]} Bxd3 {[%emt 0:00:01]} 32. Bc5 {[%emt 0:00:06]} b6 {[%emt 0:01:55]} 33. Bd6 {[%emt 0:00:04]} Nd4 {[%emt 0:01:29]} 34. Bd1 {[%emt 0:01:44]} Be2 {[%emt 0:03:12]} 35. Bxe2 {[%emt 0:00:52]} Nxe2+ {[%emt 0:00:01]} 36. Kf2 {[%emt 0:00:08]} Nd4 {[%emt 0:00:54]} 37. g4 {[%emt 0:00:20]} h5 {[%emt 0:02:11]} 38. Ke3 {[%emt 0:01:42]} Nc6 {[%emt 0:00:31]} 39. gxh5 {[%emt 0:01:54]} Kh7 {[%emt 0:00:43]} 40. Ke4 {[%emt 0:00:00]} Kh6 {[%emt 0:00:00]} 41. Bf8 {[%emt 0:00:41]} Nb8 {[%emt 0:04:48]} 42. f5 {[%emt 0:04:41]} Nd7 {[%emt 0:01:26]} 43. fxe6 {[%emt 0:01:20]} fxe6 {[%emt 0:00:23]} 44. Bd6 {[%emt 0:00:14]} Kxh5 {[%emt 0:01:21]} 45. a4 {[%emt 0:00:10]} Nc5+ {[%emt 0:06:48]} 46. Kd4 {[%emt 0:06:09]} Nxa4 {[%emt 0:03:56]} 47. b3 {[%emt 0:00:09]} Nc5 {[%emt 0:04:50]} 48. Bxc5 {[%emt 0:03:24]} bxc5+ {[%emt 0:00:05]} 49. Kxc5 {[%emt 0:00:03]} Kg4 {[%emt 0:00:16]} 50. b4 {[%emt 0:06:11]} Kf5 {[%emt 0:00:47]} 51. Kd6 {[%emt 0:01:57]} a6 {[%emt 0:00:19]} 52. Kc6 {[%emt 0:03:20]} Kxe5 {[%emt 0:00:09]} 53. Kb6 {[%emt 0:00:03]} Kd4 {[%emt 0:01:29]} 54. Kxa6 {[%emt 0:00:11]} e5 {[%emt 0:00:05]} 55. b5 {[%emt 0:00:30]} e4 {[%emt 0:00:05]} 56. b6 {[%emt 0:00:05]} e3 {[%emt 0:00:03]} 57. b7 {[%emt 0:00:04]} e2 {[%emt 0:00:04]} 58. b8=Q {[%emt 0:00:13]} e1=Q {[%emt 0:00:13]} 59. Qa7+ {[%emt 0:02:04]} Kd3 {[%emt 0:00:39]} 60. Qxg7 {[%emt 0:02:03]} Qe6+ {[%emt 0:00:11]} 61. Kb7 {[%emt 0:00:36]} Qe4+ {[%emt 0:00:21]} 62. Kb6 {[%emt 0:02:08]} Qb4+ {[%emt 0:00:14]} 63. Kc6 {[%emt 0:00:32]} Qh4 {[%emt 0:01:27]} 64. Qe5 {[%emt 0:01:32]} Qh3 {[%emt 0:02:52]} 65. Kd6 {[%emt 0:01:28]} Qh6+ {[%emt 0:02:04]} 66. Kd5 {[%emt 0:00:12]} Qh3 {[%emt 0:00:48]} 67. Qe4+ {[%emt 0:01:45]} Kd2 {[%emt 0:00:12]} 68. Qf4+ {[%emt 0:00:18]} Ke2 {[%emt 0:00:21]} 69. Ke5 {[%emt 0:00:30]} Qh8+ {[%emt 0:04:53]} 70. Kf5 {[%emt 0:00:19]} Qf8+ {[%emt 0:00:43]} 71. Kg4 {[%emt 0:00:31]} Qg7+ {[%emt 0:00:12]} 72. Kh4 {[%emt 0:00:46]} Qh7+ {[%emt 0:00:14]} 73. Kg3 {[%emt 0:01:23]} Qd3+ {[%emt 0:01:01]} 74. Kg4 {[%emt 0:00:52]} Qg6+ {[%emt 0:00:25]} 75. Qg5 {[%emt 0:00:34]} Qe4+ {[%emt 0:00:19]} 76. Qf4 {[%emt 0:01:53]} Qg6+ {[%emt 0:00:09]} 77. Kh3 {[%emt 0:00:29]} Qd3+ {[%emt 0:00:16]} 78. Qg3 {[%emt 0:00:41]} Qh7+ {[%emt 0:00:11]} 79. Qh4 {[%emt 0:00:50]} Qd3+ {[%emt 0:00:04]} 80. Qg3 {[%emt 0:00:28]} Qh7+ {[%emt 0:00:23]} 81. Kg4 {[%emt 0:00:17]} Qg6+ {[%emt 0:00:41]} 82. Kf4 {[%emt 0:00:07]} Qf6+ {[%emt 0:00:19]} 83. Ke4 {[%emt 0:00:05]} Qe6+ {[%emt 0:00:28]} 84. Kd4 {[%emt 0:00:04]} Qd7+ {[%emt 0:00:23]} 85. Ke4 {[%emt 0:00:29]} Qe6+ {[%emt 0:00:07]} 86. Qe5 {[%emt 0:00:07]} Qg4+ {[%emt 0:00:11]} 87. Kd5+ {[%emt 0:00:23]} Kf3 {[%emt 0:00:29]} 88. Qf6+ {[%emt 0:00:30]} Qf4 {[%emt 0:00:36]} 89. Qc3+ {[%emt 0:00:16]} Kg4 {[%emt 0:00:16] Ke4} 1/2-1/2

[Event "13th Poti Nana Aleksandria Cup"]
[Site "Poti"]
[Date "2018.07.15"]
[Round "4"]
[White "Matevosyan, Sedrak"]
[Black "Mesropian, Khachatur"]
[Result "1-0"]
[ECO "A16"]
[WhiteElo "2161"]
[BlackElo "2128"]
[Annotator "NA"]
[PlyCount "143"]
[EventDate "2018.07.13"]
[EventType "swiss"]
[EventCountry "GEO"]
[SourceTitle "playchess.com"]
[Source "ChessBase"]
[SourceQuality "1"]
[TimeControl "40/5400+30:1800+30"]

1. c4 {[%emt 0:00:00]} Nf6 {[%emt 0:00:00]} 2. Nc3 {[%emt 0:00:00]} d5 {[%emt 0:00:00]} 3. cxd5 {[%emt 0:00:07]} Nxd5 {[%emt 0:00:00]} 4. g3 {[%emt 0:01:06]} g6 {[%emt 0:00:13]} 5. Bg2 {[%emt 0:00:35]} Nxc3 {[%emt 0:00:07]} 6. bxc3 {[%emt 0:00:08]} Bg7 {[%emt 0:00:05]} 7. Rb1 {[%emt 0:02:33]} O-O {[%emt 0:00:57]} 8. Rxb7 {[%emt 0:05:19]} Bxb7 {[%emt 0:00:08]} 9. Bxb7 {[%emt 0:00:05]} Nd7 {[%emt 0:00:05]} 10. Bxa8 {[%emt 0:00:11]} Qxa8 {[%emt 0:00:02]} 11. Nf3 {[%emt 0:00:18]} Ne5 {[%emt 0:00:48]} 12. O-O {[%emt 0:01:52]} Nxf3+ {[%emt 0:00:38]} 13. exf3 {[%emt 0:00:05]} Rd8 {[%emt 0:00:42]} 14. Qe2 {[%emt 0:06:14]} e6 {[%emt 0:01:28]} 15. Qe4 {[%emt 0:23:00]} Qd5 {[%emt 0:02:20]} 16. Qxd5 {[%emt 0:01:32]} Rxd5 {[%emt 0:00:07]} 17. d4 {[%emt 0:07:00]} c5 {[%emt 0:02:21]} 18. dxc5 {[%emt 0:03:58]} Rxc5 {[%emt 0:00:11]} 19. Be3 {[%emt 0:05:03]} Rxc3 {[%emt 0:07:52]} 20. Rb1 {[%emt 0:04:23]} Be5 {[%emt 0:04:53]} 21. f4 {[%emt 0:10:26]} Bd6 {[%emt 0:12:19]} 22. Bxa7 {[%emt 0:11:42]} Ra3 {[%emt 0:15:51]} 23. Bd4 {[%emt 0:07:48]} Rxa2 {[%emt 0:02:55]} 24. Rb6 {[%emt 0:00:33]} e5 {[%emt 0:15:38]} 25. fxe5 {[%emt 0:00:47]} Bc7 {[%emt 0:01:14]} 26. Rc6 {[%emt 0:02:43]} Rd2 {[%emt 0:00:24]} 27. Bc3 {[%emt 0:01:11]} Rd7 {[%emt 0:00:36]} 28. Ra6 {[%emt 0:00:45]} Kf8 {[%emt 0:01:26]} 29. Kg2 {[%emt 0:01:19]} Ke8 {[%emt 0:02:01]} 30. f4 {[%emt 0:00:29]} Rd3 {[%emt 0:01:08]} 31. Bb4 {[%emt 0:00:54]} Rb3 {[%emt 0:01:13]} 32. Bc5 {[%emt 0:01:01]} Rc3 {[%emt 0:00:40]} 33. Bd4 {[%emt 0:00:24]} Rd3 {[%emt 0:01:26]} 34. Bc5 {[%emt 0:00:48]} Rc3 {[%emt 0:00:26]} 35. Ra8+ {[%emt 0:00:38]} Kd7 {[%emt 0:00:18]} 36. Bf2 {[%emt 0:01:01]} h5 {[%emt 0:01:39]} 37. Ra6 {[%emt 0:00:39]} Rc6 {[%emt 0:01:55]} 38. Ra7 {[%emt 0:00:49]} Ke6 {[%emt 0:00:17]} 39. Rb7 {[%emt 0:00:30]} Kf5 {[%emt 0:01:36]} 40. Kf3 {[%emt 0:00:00]} f6 {[%emt 0:00:00]} 41. exf6 {[%emt 0:01:36]} Kxf6 {[%emt 0:04:56]} 42. Bd4+ {[%emt 0:00:19]} Ke6 {[%emt 0:03:08]} 43. Ke4 {[%emt 0:01:01]} Rc1 {[%emt 0:01:50]} 44. Ra7 {[%emt 0:05:25]} Re1+ {[%emt 0:00:08]} 45. Kf3 {[%emt 0:00:03]} Bd6 {[%emt 0:04:22]} 46. Rg7 {[%emt 0:02:21]} Kd5 {[%emt 0:02:05]} 47. Rxg6 {[%emt 0:00:30]} h4 {[%emt 0:02:55]} 48. Bf2 {[%emt 0:01:46]} Rf1 {[%emt 0:01:41]} 49. Rh6 {[%emt 0:02:14]} hxg3 {[%emt 0:04:26]} 50. hxg3 {[%emt 0:00:07]} Bb8 {[%emt 0:02:06]} 51. Kg2 {[%emt 0:00:52]} Rb1 {[%emt 0:00:28]} 52. Ra6 {[%emt 0:01:18]} Rb3 {[%emt 0:05:07]} 53. Ra4 {[%emt 0:02:03]} Bd6 {[%emt 0:01:47]} 54. Kh3 {[%emt 0:01:36]} Rf3 {[%emt 0:06:42]} 55. Ba7 {[%emt 0:00:18]} Rb3 {[%emt 0:00:51]} 56. Kg4 {[%emt 0:02:11]} Bb4 {[%emt 0:03:27]} 57. Bf2 {[%emt 0:00:40]} Rb2 {[%emt 0:01:53]} 58. Kf5 {[%emt 0:00:42]} Bc3 {[%emt 0:00:35]} 59. Ra3 {[%emt 0:02:29]} Kc4 {[%emt 0:02:39]} 60. Ba7 {[%emt 0:01:27]} Rb7 {[%emt 0:02:17]} 61. Ke4 {[%emt 0:02:54]} Re7+ {[%emt 0:01:23]} 62. Kf3 {[%emt 0:00:15]} Rg7 {[%emt 0:01:05]} 63. Bb8 {[%emt 0:00:41]} Rb7 {[%emt 0:01:05]} 64. Bd6 {[%emt 0:00:46]} Rd7 {[%emt 0:00:18]} 65. Be5 {[%emt 0:02:13]} Bb4 {[%emt 0:05:25]} 66. Re3 {[%emt 0:00:39]} Bd2 {[%emt 0:00:43]} 67. Re4+ {[%emt 0:00:24]} Kd3 {[%emt 0:00:36]} 68. g4 {[%emt 0:00:32]} Ba5 {[%emt 0:02:23]} 69. g5 {[%emt 0:00:21]} Bd8 {[%emt 0:00:31]} 70. g6 {[%emt 0:00:30]} Bb6 {[%emt 0:00:51]} 71. g7 {[%emt 0:00:23]} Rd8 {[%emt 0:00:17]} 72. f5 {[%emt 0:00:24]} 1-0

[Event "13th Poti Nana Aleksandria Cup"]
[Site "Poti"]
[Date "2018.07.15"]
[Round "4"]
[White "Kokaia, Guram"]
[Black "Tsotsonava, Elene"]
[Result "1-0"]
[ECO "B31"]
[WhiteElo "2159"]
[BlackElo "1647"]
[Annotator "NA"]
[PlyCount "85"]
[EventDate "2018.07.13"]
[EventType "swiss"]
[EventCountry "GEO"]
[SourceTitle "playchess.com"]
[Source "ChessBase"]
[SourceQuality "1"]
[TimeControl "40/5400+30:1800+30"]

1. e4 {[%emt 0:00:00]} c5 {[%emt 0:00:00]} 2. Nf3 {[%emt 0:00:00]} Nc6 {[%emt 0:00:00]} 3. Bb5 {[%emt 0:00:00]} g6 {[%emt 0:00:00]} 4. Bxc6 {[%emt 0:00:43]} bxc6 {[%emt 0:00:00]} 5. d3 {[%emt 0:01:01]} Bg7 {[%emt 0:00:03]} 6. Nc3 {[%emt 0:00:22]} Nf6 {[%emt 0:01:27]} 7. Be3 {[%emt 0:01:37]} d6 {[%emt 0:00:35]} 8. h3 {[%emt 0:00:04]} O-O {[%emt 0:00:09]} 9. Qd2 {[%emt 0:00:24]} Rb8 {[%emt 0:00:26]} 10. Rb1 {[%emt 0:15:33]} Qa5 {[%emt 0:07:17]} 11. O-O {[%emt 0:01:43]} Rd8 {[%emt 0:02:27]} 12. Bh6 {[%emt 0:06:58]} Qb6 {[%emt 0:02:45]} 13. Bxg7 {[%emt 0:02:41]} Kxg7 {[%emt 0:00:06]} 14. e5 {[%emt 0:10:41]} Nd5 {[%emt 0:01:09]} 15. exd6 {[%emt 0:03:32]} Rxd6 {[%emt 0:05:04]} 16. Ne4 {[%emt 0:02:31]} Rd8 {[%emt 0:00:09]} 17. Ne5 {[%emt 0:03:24]} Bf5 {[%emt 0:00:54]} 18. Rfe1 {[%emt 0:14:46]} f6 {[%emt 0:12:25]} 19. Ng4 {[%emt 0:08:03]} e5 {[%emt 0:08:11]} 20. Qh6+ {[%emt 0:02:02]} Kh8 {[%emt 0:00:43]} 21. Nexf6 {[%emt 0:01:58]} Nxf6 {[%emt 0:00:34]} 22. Nxf6 {[%emt 0:00:08]} Qc7 {[%emt 0:00:57]} 23. g4 {[%emt 0:01:36]} Qg7 {[%emt 0:02:46]} 24. Qxg7+ {[%emt 0:01:19]} Kxg7 {[%emt 0:00:08]} 25. Ne4 {[%emt 0:01:00]} Bxe4 {[%emt 0:00:55]} 26. Rxe4 {[%emt 0:00:01]} Kf6 {[%emt 0:00:14]} 27. b3 {[%emt 0:00:18]} g5 {[%emt 0:03:36]} 28. Rbe1 {[%emt 0:00:28]} Re8 {[%emt 0:00:26]} 29. Rc4 {[%emt 0:01:00]} Rb5 {[%emt 0:00:14]} 30. a4 {[%emt 0:00:04]} Ra5 {[%emt 0:00:12]} 31. Re3 {[%emt 0:00:06]} Kg6 {[%emt 0:00:58]} 32. Rce4 {[%emt 0:00:21]} Kf6 {[%emt 0:00:55]} 33. Rf3+ {[%emt 0:00:18]} Kg6 {[%emt 0:00:12]} 34. Rf5 {[%emt 0:00:12]} c4 {[%emt 0:00:50]} 35. Rxc4 {[%emt 0:00:04]} Re6 {[%emt 0:00:30]} 36. Rf8 {[%emt 0:03:40]} Rd5 {[%emt 0:00:26]} 37. Rc8 {[%emt 0:00:07]} Rdd6 {[%emt 0:00:10]} 38. Rc5 {[%emt 0:00:14]} a6 {[%emt 0:01:38]} 39. f3 {[%emt 0:00:16]} h5 {[%emt 0:00:22]} 40. Kg2 {[%emt 0:00:00]} h4 {[%emt 0:00:00]} 41. Ra5 {[%emt 0:02:09]} Rd5 {[%emt 0:01:23]} 42. Rxa6 {[%emt 0:00:45]} Rc5 {[%emt 0:00:10]} 43. c4 {[%emt 0:00:12]} 1-0

[Event "13th Poti Nana Aleksandria Cup"]
[Site "Poti"]
[Date "2018.07.15"]
[Round "4"]
[White "Eynullayev, Altay"]
[Black "Gharagyozyan, Artur"]
[Result "1/2-1/2"]
[ECO "E06"]
[WhiteElo "2134"]
[BlackElo "2302"]
[Annotator "NA"]
[PlyCount "136"]
[EventDate "2018.07.13"]
[EventType "swiss"]
[EventCountry "GEO"]
[SourceTitle "playchess.com"]
[Source "ChessBase"]
[SourceQuality "1"]
[TimeControl "40/5400+30:1800+30"]

1. d4 {[%emt 0:00:00]} Nf6 {[%emt 0:11:02]} 2. c4 {[%emt 0:00:00]} e6 {[%emt 0:00:07]} 3. g3 {[%emt 0:00:00]} d5 {[%emt 0:00:05]} 4. Bg2 {[%emt 0:00:00]} Be7 {[%emt 0:00:04]} 5. Nf3 {[%emt 0:00:00]} O-O {[%emt 0:00:05]} 6. O-O {[%emt 0:00:00]} dxc4 {[%emt 0:00:04]} 7. Qc2 {[%emt 0:00:04]} b6 {[%emt 0:00:14]} 8. Bg5 {[%emt 0:01:31]} Nd5 {[%emt 0:03:52]} 9. Bxe7 {[%emt 0:01:09]} Qxe7 {[%emt 0:00:05]} 10. Qxc4 {[%emt 0:00:12]} Ba6 {[%emt 0:00:09]} 11. Qc2 {[%emt 0:01:50]} Nd7 {[%emt 0:00:36]} 12. Nc3 {[%emt 0:10:58]} Nxc3 {[%emt 0:01:56]} 13. bxc3 {[%emt 0:01:49]} Rac8 {[%emt 0:00:15]} 14. Rfe1 {[%emt 0:05:34]} c5 {[%emt 0:00:02]} 15. Qa4 {[%emt 0:02:53]} Nb8 {[%emt 0:00:06]} 16. Qa3 {[%emt 0:10:20]} Rc7 {[%emt 0:02:31]} 17. Rac1 {[%emt 0:06:14]} Rfc8 {[%emt 0:00:09]} 18. Ne5 {[%emt 0:05:03]} Kf8 {[%emt 0:07:05]} 19. Qb2 {[%emt 0:06:36]} Nd7 {[%emt 0:09:05]} 20. Nxd7+ {[%emt 0:03:47]} Qxd7 {[%emt 0:00:44]} 21. e4 {[%emt 0:02:36]} Qa4 {[%emt 0:02:03]} 22. d5 {[%emt 0:01:24]} Bc4 {[%emt 0:02:22]} 23. Rc2 {[%emt 0:03:49]} Rd8 {[%emt 0:00:29]} 24. Rd2 {[%emt 0:00:50]} Rcd7 {[%emt 0:08:36]} 25. Red1 {[%emt 0:02:01]} Rd6 {[%emt 0:01:34]} 26. Qb1 {[%emt 0:06:28]} g6 {[%emt 0:02:06]} 27. Bf3 {[%emt 0:02:40]} Kg7 {[%emt 0:00:31]} 28. Qb2 {[%emt 0:02:10]} h5 {[%emt 0:01:24]} 29. Re1 {[%emt 0:12:10]} Qe8 {[%emt 0:05:49]} 30. Qc1 {[%emt 0:03:04]} exd5 {[%emt 0:01:00]} 31. exd5 {[%emt 0:00:31]} Qd7 {[%emt 0:00:08]} 32. Re5 {[%emt 0:01:49]} f6 {[%emt 0:02:04]} 33. Re1 {[%emt 0:03:03]} h4 {[%emt 0:05:45]} 34. Re4 {[%emt 0:05:53]} Rxd5 {[%emt 0:10:04]} 35. Rb2 {[%emt 0:00:25]} Bd3 {[%emt 0:06:38]} 36. Rxh4 {[%emt 0:00:25]} g5 {[%emt 0:00:29]} 37. Bxd5 {[%emt 0:00:24]} Qxd5 {[%emt 0:00:58]} 38. Ra4 {[%emt 0:00:37]} Qf3 {[%emt 0:01:23]} 39. Rd2 {[%emt 0:00:38]} a5 {[%emt 0:07:06]} 40. Qd1 {[%emt 0:00:00]} Qc6 {[%emt 0:00:00]} 41. Rc4 {[%emt 0:08:55]} Bf1 {[%emt 0:11:18]} 42. Kxf1 {[%emt 0:06:00]} Qh1+ {[%emt 0:00:32]} 43. Ke2 {[%emt 0:00:01]} Re8+ {[%emt 0:00:09]} 44. Kd3 {[%emt 0:00:04]} Qd5+ {[%emt 0:00:14]} 45. Kc2 {[%emt 0:00:03]} Qxc4 {[%emt 0:00:19]} 46. Kb2 {[%emt 0:01:09]} a4 {[%emt 0:02:01]} 47. a3 {[%emt 0:06:40]} Re7 {[%emt 0:00:57]} 48. f4 {[%emt 0:01:23]} Qb5+ {[%emt 0:03:16]} 49. Ka2 {[%emt 0:01:12]} Qc4+ {[%emt 0:02:11]} 50. Kb2 {[%emt 0:00:16]} b5 {[%emt 0:02:32]} 51. fxg5 {[%emt 0:02:23]} fxg5 {[%emt 0:01:23]} 52. Rd7 {[%emt 0:05:17]} Rxd7 {[%emt 0:00:19]} 53. Qxd7+ {[%emt 0:00:01]} Kg6 {[%emt 0:00:09]} 54. Qc6+ {[%emt 0:01:06]} Kh5 {[%emt 0:01:43]} 55. Qf3+ {[%emt 0:00:24]} g4 {[%emt 0:01:05]} 56. Qf5+ {[%emt 0:00:07]} Kh6 {[%emt 0:00:02]} 57. Qf6+ {[%emt 0:00:28]} Kh7 {[%emt 0:00:01]} 58. Qf5+ {[%emt 0:00:27]} Kg7 {[%emt 0:00:20]} 59. Qg5+ {[%emt 0:00:02]} Kf8 {[%emt 0:00:23]} 60. Qf6+ {[%emt 0:00:44]} Ke8 {[%emt 0:00:05]} 61. Qe5+ {[%emt 0:00:22]} Kd7 {[%emt 0:00:11]} 62. Qg7+ {[%emt 0:00:47]} Kd6 {[%emt 0:00:14]} 63. Qf8+ {[%emt 0:00:30]} Kd5 {[%emt 0:01:34]} 64. Qg8+ {[%emt 0:00:08]} Ke5 {[%emt 0:00:30]} 65. Qg5+ {[%emt 0:00:05]} Ke6 {[%emt 0:00:29]} 66. Qg6+ {[%emt 0:01:00]} Kd7 {[%emt 0:00:23]} 67. Qg7+ {[%emt 0:00:10]} Kc8 {[%emt 0:00:17]} 68. Qf8+ {[%emt 0:00:34]} Kd7 {[%emt 0:00:12]} 1/2-1/2

[Event "13th Poti Nana Aleksandria Cup"]
[Site "Poti"]
[Date "2018.07.15"]
[Round "4"]
[White "Eynullayev, Atilla"]
[Black "Nikulina, Alena"]
[Result "1-0"]
[ECO "A84"]
[WhiteElo "2120"]
[BlackElo "1959"]
[Annotator "NA"]
[PlyCount "85"]
[EventDate "2018.07.13"]
[EventType "swiss"]
[EventCountry "GEO"]
[SourceTitle "playchess.com"]
[Source "ChessBase"]
[SourceQuality "1"]
[TimeControl "40/5400+30:1800+30"]

1. d4 {[%emt 0:00:00]} f5 {[%emt 0:00:00]} 2. c4 {[%emt 0:00:00]} Nf6 {[%emt 0:00:00]} 3. Nf3 {[%emt 0:00:06]} g6 {[%emt 0:00:23]} 4. e3 {[%emt 0:00:44]} Bg7 {[%emt 0:00:08]} 5. b4 {[%emt 0:00:05]} a5 {[%emt 0:21:54]} 6. b5 {[%emt 0:01:30]} c6 {[%emt 0:06:49]} 7. a4 {[%emt 0:07:23]} d6 {[%emt 0:04:52]} 8. Bb2 {[%emt 0:01:58]} O-O {[%emt 0:00:51]} 9. Bd3 {[%emt 0:02:33]} Qe8 {[%emt 0:07:01]} 10. Nbd2 {[%emt 0:11:29]} Nbd7 {[%emt 0:02:38]} 11. O-O {[%emt 0:24:28]} e5 {[%emt 0:02:06]} 12. dxe5 {[%emt 0:01:53]} dxe5 {[%emt 0:02:18]} 13. c5 {[%emt 0:00:41]} e4 {[%emt 0:06:10]} 14. Bc4+ {[%emt 0:01:08]} Kh8 {[%emt 0:00:06]} 15. Nd4 {[%emt 0:01:51]} Nxc5 {[%emt 0:11:03]} 16. bxc6 {[%emt 0:06:10]} bxc6 {[%emt 0:14:18]} 17. Ba3 {[%emt 0:01:58]} Qe5 {[%emt 0:00:34]} 18. Nxc6 {[%emt 0:02:17]} Qd6 {[%emt 0:04:39]} 19. Nb3 {[%emt 0:01:26]} Qxc6 {[%emt 0:04:00]} 20. Bxc5 {[%emt 0:01:40]} Be6 {[%emt 0:04:49]} 21. Bxf8 {[%emt 0:04:12]} Bxf8 {[%emt 0:02:48]} 22. Bxe6 {[%emt 0:02:13]} Qxe6 {[%emt 0:00:05]} 23. Nd4 {[%emt 0:00:55]} Qe5 {[%emt 0:00:16]} 24. Rb1 {[%emt 0:04:52]} Ng4 {[%emt 0:01:13]} 25. g3 {[%emt 0:00:19]} h5 {[%emt 0:01:06]} 26. Rb5 {[%emt 0:00:57]} Qf6 {[%emt 0:00:37]} 27. Qb3 {[%emt 0:04:18]} Ne5 {[%emt 0:00:49]} 28. Qe6 {[%emt 0:05:07]} Nf3+ {[%emt 0:00:26]} 29. Kh1 {[%emt 0:00:36]} Qg5 {[%emt 0:01:06]} 30. Nxf3 {[%emt 0:00:21]} exf3 {[%emt 0:00:05]} 31. Qd5 {[%emt 0:00:41]} Rd8 {[%emt 0:01:18]} 32. Qxf3 {[%emt 0:00:09]} Bb4 {[%emt 0:00:21]} 33. h4 {[%emt 0:00:24]} Qe7 {[%emt 0:00:20]} 34. Qf4 {[%emt 0:01:27]} Kh7 {[%emt 0:00:19]} 35. Rc1 {[%emt 0:02:09]} Bd6 {[%emt 0:00:18]} 36. Qf3 {[%emt 0:00:30]} Bb4 {[%emt 0:01:31]} 37. Rb7 {[%emt 0:01:20]} Rd7 {[%emt 0:00:03]} 38. Rxd7 {[%emt 0:00:04]} Qxd7 {[%emt 0:00:01]} 39. Qc6 {[%emt 0:00:29]} Qf7 {[%emt 0:01:33]} 40. Rd1 {[%emt 0:00:00]} Kh6 {[%emt 0:00:00]} 41. Rd7 {[%emt 0:01:54]} Qg8 {[%emt 0:11:13]} 42. e4 {[%emt 0:00:51]} f4 {[%emt 0:01:03]} 43. Qf6 {[%emt 0:00:24]} 1-0

[Event "13th Poti Nana Aleksandria Cup"]
[Site "Poti"]
[Date "2018.07.15"]
[Round "4"]
[White "Matsenko, Vadim"]
[Black "Yeritsyan, Hayk"]
[Result "1/2-1/2"]
[ECO "B32"]
[WhiteElo "2106"]
[BlackElo "2178"]
[Annotator "NA"]
[PlyCount "90"]
[EventDate "2018.07.13"]
[EventType "swiss"]
[EventCountry "GEO"]
[SourceTitle "playchess.com"]
[Source "ChessBase"]
[SourceQuality "1"]
[TimeControl "40/5400+30:1800+30"]

1. e4 {[%emt 0:00:00]} c5 {[%emt 0:00:50]} 2. Nf3 {[%emt 0:00:02]} Nc6 {[%emt 0:00:08]} 3. d4 {[%emt 0:01:57]} cxd4 {[%emt 0:00:06]} 4. Nxd4 {[%emt 0:00:06]} e5 {[%emt 0:00:07]} 5. Nb5 {[%emt 0:01:45]} d6 {[%emt 0:00:25]} 6. a4 {[%emt 0:03:37]} Be6 {[%emt 0:03:06]} 7. N1c3 {[%emt 0:00:26]} a6 {[%emt 0:03:29]} 8. Na3 {[%emt 0:00:07]} Nf6 {[%emt 0:00:16]} 9. Be3 {[%emt 0:03:54]} Ng4 {[%emt 0:02:23]} 10. Qd2 {[%emt 0:00:35]} Nxe3 {[%emt 0:00:27]} 11. fxe3 {[%emt 0:00:43]} Rc8 {[%emt 0:05:51]} 12. O-O-O {[%emt 0:05:21]} Be7 {[%emt 0:06:16]} 13. Nd5 {[%emt 0:01:17]} O-O {[%emt 0:03:59]} 14. Kb1 {[%emt 0:16:57]} Bg5 {[%emt 0:13:04]} 15. Be2 {[%emt 0:09:27]} Bxd5 {[%emt 0:11:01]} 16. exd5 {[%emt 0:00:49]} Nb8 {[%emt 0:00:35]} 17. g4 {[%emt 0:20:29]} e4 {[%emt 0:06:13]} 18. Qb4 {[%emt 0:06:01]} Qe7 {[%emt 0:02:30]} 19. Rd4 {[%emt 0:04:11]} a5 {[%emt 0:03:46]} 20. Qb3 {[%emt 0:02:43]} Nd7 {[%emt 0:01:12]} 21. Nc4 {[%emt 0:01:09]} Nc5 {[%emt 0:01:25]} 22. Qb6 {[%emt 0:04:15]} Rfd8 {[%emt 0:02:00]} 23. b3 {[%emt 0:02:56]} Qf6 {[%emt 0:01:13]} 24. Rf1 {[%emt 0:05:24]} Qh6 {[%emt 0:00:08]} 25. Qxa5 {[%emt 0:00:20]} Bxe3 {[%emt 0:02:15]} 26. Nxe3 {[%emt 0:00:13]} Qxe3 {[%emt 0:00:18]} 27. Qd2 {[%emt 0:00:06]} Qh3 {[%emt 0:01:11]} 28. Bb5 {[%emt 0:02:57]} Qxg4 {[%emt 0:05:58]} 29. Qf2 {[%emt 0:00:33]} Qh5 {[%emt 0:04:46]} 30. Be2 {[%emt 0:01:34]} Qg6 {[%emt 0:00:11]} 31. Rg1 {[%emt 0:01:28]} Qh6 {[%emt 0:00:03]} 32. Rg3 {[%emt 0:02:16]} Re8 {[%emt 0:01:34]} 33. Re3 {[%emt 0:00:41]} Re5 {[%emt 0:01:06]} 34. Bb5 {[%emt 0:00:35]} f5 {[%emt 0:02:08]} 35. b4 {[%emt 0:00:08]} Na6 {[%emt 0:02:29]} 36. Bd7 {[%emt 0:00:12]} Rf8 {[%emt 0:00:29]} 37. Be6+ {[%emt 0:00:11]} Rxe6 {[%emt 0:03:21]} 38. dxe6 Qxe6 39. Qd2 {[%emt 0:02:04]} Rd8 {[%emt 0:00:04]} 40. Rg3 {[%emt 0:00:00]} Nc7 {[%emt 0:00:00]} 41. Rxg7+ {[%emt 0:16:48]} Kxg7 {[%emt 0:06:15]} 42. Qg5+ {[%emt 0:00:11]} Qg6 {[%emt 0:00:04]} 43. Qe7+ {[%emt 0:00:05]} Kh6 {[%emt 0:00:03]} 44. Qh4+ {[%emt 0:00:08]} Kg7 {[%emt 0:00:05]} 45. Qe7+ {[%emt 0:00:03]} Kh6 1/2-1/2